Cogmind - Beta 17 @@@ ROGUE MODE // 2026.07.21 @ 09:28:56 Player: Akl Result: Destroyed by Y-45 Defender with Beam Rifle Performance ------------- Evolutions (1) 500 Regions Visited (2) 400 Robots Destroyed (31) 155 Value Destroyed (503) 503 Prototype IDs (1) 20 Alien Tech Used (0) 0 Bonus (0) 0 TOTAL SCORE: 1578 Bonus ------- None Cogmind --------- Core Integrity 0/400 Matter 183/300 Energy 217/265 System Corruption 6% Temperature Cool (37) Movement Flying (120) Ox1 Location -9/Materials Parts ------- > --- POWER (1) -------- Improved Ion Engine > --- PROPULSION (2) --- Flight Unit > --- UTILITY (4) ------ Signal Interpreter > --- WEAPON (2) ------- Light Assault Rifle > --- INVENTORY (5) ---- Light Ion Engine Heavy Ion Engine Small Storage Unit Particle Gun Mining Laser Peak State ------------ > --- POWER ------------ Heavy Ion Engine > --- PROPULSION ------- Aluminum Leg Aluminum Leg > --- UTILITY ---------- Small Storage Unit Signal Interpreter Terrain Scanner Terrain Scan Processor > --- WEAPON ----------- Particle Gun Mini Grenade Launcher > --- INVENTORY -------- Light Ion Engine Heavy Ion Engine Particle Gun Particle Cannon Grenade Launcher Mining Laser [Rating: 15] Favorites ----------- Power Heavy Ion Engine Engine Heavy Ion Engine Propulsion Aluminum Leg Leg Aluminum Leg Flight Unit Flight Unit Utility Signal Interpreter Device Terrain Scanner Storage Small Storage Unit Processor Signal Interpreter Weapon Light Assault Rifle Energy Gun Particle Gun Energy Cannon Particle Cannon Ballistic Gun Light Assault Rifle Launcher Grenade Launcher Build | -11 -10 -9 ------- Run | Yrd Mat Mat Slots Evolved 2 | . . 2 Power . | . . . Propulsion . | . . . Utility 2 | . . 2 Weapon . | . . . Parts Attached 20 | 5 5 10 Power 3 | . 1 2 Engine 3 | . 1 2 Core . | . . . Reactor . | . . . Propulsion 4 | 2 . 2 Treads . | . . . Leg 2 | 2 . . Wheel . | . . . Hover . | . . . Flight 2 | . . 2 Utility 5 | 1 2 2 Device 2 | 1 1 . Storage 1 | . . 1 Processor 2 | . 1 1 Hackware . | . . . Protection . | . . . Artifact . | . . . Weapon 8 | 2 2 4 Energy Gun 1 | . 1 . Energy Cannon 1 | . . 1 Ballistic Gun 4 | 2 . 2 Ballistic Cannon . | . . . Launcher 2 | . 1 1 Special Weapon . | . . . Impact Weapon . | . . . Slashing Weapon . | . . . Piercing Weapon . | . . . Special Melee Weapon . | . . . Unidentified Prototypes 1 | . . 1 Parts Lost 11 | . 1 10 Power 1 | . . 1 Propulsion 3 | . . 3 Utility 3 | . 1 2 Weapon 4 | . . 4 Highest Loss Streak 8 | . 1 8 To Critical Strikes 1 | . . 1 Average Backups 4 | 2 4 5 Power 1 | 1 1 1 Propulsion . | . . . Utility . | . 1 . Weapon 2 | . 1 3 Tool/Special . | . . . Unused Backups 4 | . 1 3 Power 2 | . . 2 Propulsion . | . . . Utility . | . . . Weapon 2 | . 1 1 Tool/Special . | . . . Average Slot Usage (%) 80 | . 75 84 Engine 5 | . 1 9 Leg 22 | . 28 17 Device 7 | . 5 8 Storage 4 | . . 9 Processor 15 | . 12 19 Energy Gun 5 | . 1 8 Ballistic Gun 7 | . 13 1 Launcher 10 | . 12 8 Peak Build Rating 15 | 7 8 15 Average Rating 8 | 3 5 12 On Entrance 5 | . 7 8 Avg Prop Armor Cover (%) 20 | 23 20 . Naked Turns . | . . . Heaviest Build 20 | 3 10 20 Greatest Support 20 | 3 20 20 Greatest Overweight (x) 4 | . 1 4 Average Overweight (x) . | . . . Largest Inventory Capacity 8 | 5 5 8 Average Capacity 6 | 5 5 7 Most Carried 7 | 5 5 7 Average Carried 5 | 2 4 5 Final Capacity 5 | 5 5 5 Final Carried 5 | 4 5 5 Class Distribution -------------------- 100% | Mutant Dominant Class ---------------- Mutant | -10/Materials Mutant | -9/Materials Resources | -11 -10 -9 ----------- Run | Yrd Mat Mat Matter Collected 555 | 268 141 146 Remotely . | . . . Salvage Created 634 | 100 228 306 Parts 57 | 4 21 32 Haulers Intercepted . | . . . Recyclers Shooed 1 | . . 1 Parts Field Recycled . | . . . Retrieved Matter . | . . . Parts Self-Destructed . | . . . Prevented . | . . . Parts Restored . | . . . Kills | -11 -10 -9 ------- Run | Yrd Mat Mat Combat Hostiles Destroyed 15 | . 6 9 Guns 4 | . . 4 AOE 11 | . 6 5 Classes Destroyed 8 | 2 4 2 Worker 3 | . 1 2 Builder 4 | . 1 3 Tunneler 1 | 1 . . Recycler 2 | 1 . 1 Watcher 6 | . 2 4 Swarmer 8 | . . 8 Grunt 6 | . 6 . Sentry 1 | . . 1 Best Kill Streak 8 | 1 8 7 Combat Bots Only 5 | . 4 5 Max Kills in Single Turn 4 | 1 3 4 Gunslinging . | . . . Exploded 3 | . 2 3 Melee . | . . . Uniques/NPCs Destroyed . | . . . Combat | -11 -10 -9 -------- Run | Yrd Mat Mat Hostile Shots Fired 138 | . 11 127 Missed 52 | . 4 48 Hits 86 | . 7 79 Projectile 86 | . 7 79 Critical Strikes 3 | . . 3 Damage Taken 1285 | . 136 1149 Core 420 | . 18 402 Absorbed by Shields . | . . . Core Remaining (%) 96 | 100 92 . Volleys Fired 54 | 11 13 30 Largest 2 | 2 2 2 Hottest 95 | 40 40 95 Shots Fired 68 | 22 14 32 Gun 45 | 22 2 21 Cannon . | . . . Launcher 23 | . 12 11 Special . | . . . Kinetic 42 | 22 2 18 Thermal 3 | . . 3 Explosive 23 | . 12 11 Electromagnetic . | . . . Robot Hit Streak 7 | 5 4 7 Robot Miss Streak 2 | 2 1 2 Penetration Max . | . . . Secondary Targets . | . . . Shots Hit Robots 39 | 12 8 19 Core Hits 42 | 3 17 22 Critical Kills 1 | 1 . . Critical Parts Destroyed . | . . . Critical Strikes 1 | 1 . . Destroy 1 | 1 . . Melee Attacks . | . . . Impact . | . . . Slashing . | . . . Piercing . | . . . Sneak Attacks . | . . . Combat Hostiles . | . . . Follow-up Attacks . | . . . Damage Inflicted 1771 | 98 559 1114 Guns 349 | 98 7 244 Cannons . | . . . Explosions 1422 | . 552 870 Melee . | . . . Ramming . | . . . Kinetic 297 | 98 7 192 Thermal 52 | . . 52 Explosive 1422 | . 552 870 Electromagnetic . | . . . Impact . | . . . Slashing . | . . . Piercing . | . . . Highest Corruption 6 | . . 6 Average Corruption 6 | . . 6 Corruption Purged . | . . . Corruption Blocked . | . . . Effects 3 | . . 3 Message Errors 1 | . . 1 Heat Flow Errors 1 | . . 1 Energy Discharges 1 | . . 1 Overload Shots . | . . . Overflow Damage 53 | . . 53 Projectiles . | . . . Explosions 53 | . . 53 Melee . | . . . Knockbacks . | . . . Impact . | . . . Kinetic . | . . . Secondary . | . . . Self-Inflicted Damage 236 | . 44 192 Shots 8 | . 2 6 Rammed . | . . . Targets Rammed . | . . . Kicked . | . . . Crushed . | . . . Highest Temperature 200 | . 2 200 Average Temperature 47 | . 2 49 Received Heat Transfer 240 | . 51 189 Siege Activations . | . . . Martial Activations . | . . . Shielding Activations . | . . . Robots Disrupted . | . . . Combat Hostiles . | . . . Robots Corrupted . | . . . Combat Hostiles . | . . . Parts Fried . | . . . Impact Corruptions . | . . . Robots Melted . | . . . Combat Hostiles . | . . . Parts Melted . | . . . Heat Transferred 111 | . . 111 Parts Sabotaged . | . . . Parts Stolen . | . . . Parts Stripped . | . . . Power Chain Reactions . | . . . Alert | -11 -10 -9 ------- Run | Yrd Mat Mat Maximum Alert Level 1 | . . 1 Low Security (%) 98 | 100 100 95 Level 1 1 | . . 4 Level 2 . | . . . Level 3 . | . . . Level 4 . | . . . Level 5 . | . . . High Security . | . . . Max Security . | . . . Peak Influence 219 | 5 130 219 Initial 28 | . . 28 Average 72 | . 73 88 Influence Increases 647 | 10 228 409 Destroy 0b10 Robot/C 300 | . 120 180 Destroy 0b10 Robot/NC 80 | 10 20 50 Destroy Leader 82 | . 34 48 Successful Hack 5 | . . 5 Disable Machine 15 | . . 15 Destroy Structure 135 | . 54 81 Partial Spotted 15 | . . 15 Lose Combat Pursuer 15 | . . 15 Influence Decreases 468 | 10 160 298 Entered New Map 40 | . . 40 Time Decay 318 | 10 150 158 Lost Part 110 | . 10 100 Squads Dispatched 1 | . 1 . Investigation . | . . . Extermination . | . . . Reinforcement 1 | . 1 . Assault . | . . . Garrison . | . . . Intercept . | . . . Searches Triggered . | . . . Construction Impeded . | . . . Haulers Reinforced . | . . . Active Scanning Responses . | . . . Cargo Convoy Interrupts . | . . . Stealth | -11 -10 -9 --------- Run | Yrd Mat Mat Distress Signals 2 | . 1 1 Communications Jammed . | . . . Distress Signals . | . . . Times Spotted 26 | . 9 17 Peak Tracking Total 6 | . 6 6 Tactical Retreats 1 | . . 1 Traps | -11 -10 -9 ------- Run | Yrd Mat Mat Traps Triggered . | . . . Indirectly . | . . . Trap Hack Attempts . | . . . Triggered . | . . . Disarmed . | . . . Reprogrammed . | . . . Reused . | . . . Traps Extracted . | . . . Installed . | . . . Triggered . | . . . Machines | -11 -10 -9 ---------- Run | Yrd Mat Mat Machines Disabled 1 | . . 1 Max in Single Turn 1 | . . 1 Machines Repaired . | . . . Machines Dismantled . | . . . Machines Sabotaged . | . . . Overloaded Fab Kills . | . . . Hacking | -11 -10 -9 --------- Run | Yrd Mat Mat Machines Accessed 5 | . 3 2 Terminals 3 | . 1 2 Fabricators . | . . . Repair Stations . | . . . Recycling Units 2 | . 2 . Scanalyzers . | . . . Garrison Access . | . . . Total Hacks 14 | . 6 8 Successful 4 | . 2 2 Failed 10 | . 4 6 Catastrophic . | . . . Database Lockouts . | . . . Manual . | . . . Terminals 9 | . 1 8 Fabricators . | . . . Repair Stations . | . . . Recycling Units 5 | . 5 . Scanalyzers . | . . . Garrison Access . | . . . Terminal Hacks 2 | . . 2 Record 1 | . . 1 Zone Layout 1 | . . 1 Fabricator Hacks . | . . . Repair Station Hacks . | . . . Recycling Unit Hacks 2 | . 2 . Retrieve Components 2 | . 2 . Scanalyzer . | . . . Garrison Access Hacks . | . . . Unauthorized Hacks . | . . . Terminals . | . . . Fabricators . | . . . Repair Stations . | . . . Recycling Units . | . . . Scanalyzers . | . . . Garrison Access . | . . . Data Cores Recovered . | . . . Used . | . . . Hacking Detections . | . . . Full Trace Events . | . . . Feedback Events . | . . . Feedback Blocked . | . . . Robot Schematics Acquired . | . . . Robots Built . | . . . Authchips . | . . . Time . | . . . Total Robot Build Rating . | . . . Part Schematics Acquired . | . . . Parts Built . | . . . Authchips . | . . . Time . | . . . Total Part Build Rating . | . . . Part Studies Acquired . | . . . Parts Repaired . | . . . Time . | . . . Parts Recycled . | . . . Recycled Matter . | . . . Retrieved Matter . | . . . Retrieved Components 7 | . 7 . Parts Scanalyzed . | . . . Part Schematics Acquired . | . . . Parts Damaged . | . . . Bothacking | -11 -10 -9 ------------ Run | Yrd Mat Mat Used RIF Installer . | . . . Robots Hacked . | . . . Non-combat . | . . . Combat . | . . . Robot Hacks Applied . | . . . Relay Couplers Released . | . . . Fabnet Peak Effective % . | . . . Robots Rewired . | . . . Allies Hacked . | . . . Hacks Repelled . | . . . Allies | -11 -10 -9 -------- Run | Yrd Mat Mat Total Allies . | . . . Largest Group . | . . . Highest-Rated Group . | . . . Highest-Rated Ally . | . . . Total Orders . | . . . Ally Attacks . | . . . Total Damage . | . . . Kills . | . . . Allies Corrupted . | . . . Allies Melted . | . . . Intel | -11 -10 -9 ------- Run | Yrd Mat Mat Active Infowar (turns) 399 | 10 131 258 Terrain 399 | 10 131 258 Robot Analysis Total . | . . . Derelict Logs Recovered . | . . . Drone Launches . | . . . Drone Recoveries . | . . . Exploration | -11 -10 -9 ------------- Run | Yrd Mat Mat Turns Passed 765 | 84 341 340 Spaces Moved 593 | 82 296 215 Core 364 | 82 265 17 Treads . | . . . Legs 217 | . 31 186 Wheels . | . . . Hover . | . . . Flight 12 | . . 12 Fastest Speed 37 | 50 50 37 Average Speed 97 | 50 97 115 Slowest Speed 250 | 50 120 250 Overloaded Moves . | . . . Propulsion Burnouts . | . . . Robots Hopped 1 | . . 1 Potential Cave-ins . | . . . Cave-ins Triggered 1 | . . 1 Exploration Rate (%) 26 | 3 49 26 Regions Visited 2 Branch Regions . Pre-discovered Areas . | . . . Known Exits Taken 1 | . 1 . Unknown Exits Taken 1 | 1 . . Scrap Searched . | . . . Spaces Dug . | . . . Terrain Destroyed 170 | . 70 100 Melee . | . . . Projectile . | . . . AOE 170 | . 70 100 Terrain Rammed . | . . . Walls Destroyed . | . . . Machines Disabled . | . . . Actions | -11 -10 -9 --------- Run | Yrd Mat Mat Total 715 | 106 333 276 Wait 25 | . 12 13 Move 589 | 81 295 213 Hop 1 | . . 1 Pick Up 18 | 9 4 5 Fast Attach 8 | . 4 4 Attach 10 | 5 . 5 Detach 1 | . . 1 Swap 3 | . 1 2 Drop 6 | . 4 2 Fire 54 | 11 13 30 Melee . | . . . Ram . | . . . Kick . | . . . Crush . | . . . Escape Stasis . | . . . Rewire . | . . . Trap . | . . . Miscellaneous . | . . . Route ------- -11/Scrapyard -10/Materials (discovered 2 exits: *Mat / [*Min]) -9/Materials History --------- Turn | Location | Event 12 | -11/Scrapyard | Discovered new exit (range 15) 85 | -11/Scrapyard | Entered Materials 277 | -10/Materials | Discovered new exit (range 16) 315 | -10/Materials | Build established: Mutant 374 | -10/Materials | Discovered new exit (range 6) 396 | -10/Materials | Identified exit to Materials 426 | -10/Materials | Entered another Materials area 426 | -9/Materials | Evolved 2 slots: Utility x2 695 | -9/Materials | Crushed by falling debris 711 | -9/Materials | Core integrity fell below 50% 740 | -9/Materials | Lost 8 parts (1p2n2u3w) 744 | -9/Materials | Core integrity fell below 20% 766 | -9/Materials | Destroyed by Y-45 Defender with Beam Rifle Last Messages --------------- 00733_ U-05 Engineer lays Concrete. 00734_ Acquired 8 matter. 00735_ U-05 Engineer lays Concrete. 00736_ R-06 Scavenger collects Wheel. 00736_ U-05 Engineer lays Concrete. 00738_ U-05 Engineer builds a Wall. 00739_ U-05 Engineer destroyed. 00740_ R-06 Scavenger collects Lgt. Armor Plating. 00741_ R%I=QZXHXCG8NLF=40YFKA 00746_ The unstable cave ceiling collapses. 00746_ Terrain Scan Processor crushed. 00746_ Autogun destroyed. 00747_ Acquired Flight Unit. 00749_ Acquired Imp. Ion Engine. 00751_ Acquired Flight Unit. 00754_ Acquired Lgt. Assault Rifle. 00759_ Flight Unit destroyed. 00760_ The unstable cave ceiling collapses. 00766_ Critical hit (Burn: +37). Map ----- +----------------------------------------------------+ | ??????????#??# !!!#?# #?? | | ??????????#??# !! #?######## #+####### | | ??????????#?##? !! ##??###### # | #?# ? | | ????????????#??? ###### ### #""" #?# ! ? | | ???????##??????####+# # ##### #""" ### | | ?????????????#?# #""" ### !!! | | ???????#?#?##??# # ### !!! | | ???????#??????## % ########### !! | | ????????????##?# #### ## #???? ??##T###" | | ?????########### # """ # #????? ???###???" | | ????## # # "Y" # # ? ??? ???????#? | | ??#??# # + # + ????? ????????? | | ?????# # # # # ?? ?? ????????? | | ?????# + ########### # ?????? ???????? | | ????## # ########### #???????????????? | | ????## ### ##?# # #???????????????? | | #????# ## ### # #???????????????? | | ???### # ## # #???????????????? | | ?# ############# ## / #???????????????? | | ##### # ## # #???????????????? | | ?"" # ## # #???????????????? | | "Y """ # # [ Y####### #???????????????? | | "" "" # # #??????????????? | | "" % = #Y* # #??????????????? | | # # % *#*!= + #??????????????? | | [% #%] @ # ???????????????? | | #####+### ## #! # ???????????????? | | ???# + # ""# """"" ## #???????????????? | | ???# # # [ T"# """"" ## #???????????????? | | ???# + """# ""# """"" ## #???????????????? | | ??? # """# # ## #???????????????? | | ??? # """######## ## #???????????????? | | ??? # ##???#?# + +???????????????? | | ??? # #?????########### #???????????????? | | ??? # #??##?#???#?????# #???????????????? | | ??? ##############????????# #???????????????? | | ??? ##????# #????????# #???????????????? | | ??? #?#??# #??#?????# #???????????????? | | ??? ###### #????????# ???????????????? | | ???T" + #????????# ???????????????? | | ??? ###### ##???????# ???????????????? | | ??? #????# #????#########???????????????? | | ??? ###????# #????# # ???????????????? | | ??? ######## #????# + ""???????????????? | | ?????????????????????????????????????????????????? | | ?????????????????????????????????????????????????? | | ?????????????????????????????????????????????????? | | ?????????????????????????????????????????????????? | | ?????????????????????????????????????????????????? | | ?????????????????????????????????????????????????? | +----------------------------------------------------+ Best States ------------- Heat Dissipation 28 Energy Generation 14 Energy Capacity 280 Matter Stores 300 Matter Capacity 300 Sight Range 16 Terrain Scan Range 16 Terrain Scan Density 85 Evasion (%) 62 Item Schematics ----------------- None Robot Schematics ------------------ None Fabricated ------------ Nothing Repaired ---------- Nothing Studied --------- None Alien Tech Used ----------------- None Achievements -------------- None Challenges ------------ None Game ------ Seed MassTractorMonowheel Manual? 0 Play Time 00:14:06 Cumulative 25.2 hours Start 2026.07.20 @ 18:21:47 End 2026.07.21 @ 09:28:56 Sessions 3 Manual Loads 0 Difficulty Rogue Special Mode None Game No. 44 Rogue 44 Adventurer 0 Explorer 0 Win Type - Total 0 Types 0/0/0/0/0/0/0/0/0/0 Lore% 15 Gallery% 21 Achievement% 17 Wizard Run 0 Options --------- Layout 1 ASCII 0 Keyboard 0 Movement Mouse Keybinds 0 Fullscreen 1 Font 24/Smallcaps Map View 50x35 Zoom Use 0% Tactical HUD 1 Map Filters NONE Filters NONE Steam 1 RUN: 4fe3fc99-ad39-4eee-8fdf-08406492bd83